Cogmind - Beta 15 @@@ ROGUE MODE // 2025.06.05 @ 01:36:49 Player: Cracklepappy Result: Destroyed by ME-RLN with Improved Arc Thrower Performance ------------- Evolutions (1) 500 Regions Visited (6) 1200 Robots Destroyed (114) 570 Value Destroyed (2506) 2506 Prototype IDs (47) 940 Alien Tech Used (0) 0 Bonus (360) 360 TOTAL SCORE: 6076 Bonus ------- High Alert Combat Kills 109 Follower Combat Kills 14 Aligned with FarCom 300 Friendly Fire -63 Cogmind --------- Core Integrity 0/400 Matter 234/300 Energy 264/280 System Corruption 7% Temperature Cool (0) Movement Rolling (225) Ox9 Location -8/Mines Parts ------- > --- POWER (1) -------- Cooled Ion Engine > --- PROPULSION (2) --- Light Treads Armored Wheel > --- UTILITY (2) ------ Huge Storage Unit Sensor Drone Bay (10/20) > --- WEAPON (4) ------- Improved Assault Rifle Improved Assault Rifle Improved Assault Rifle Improved Assault Rifle > --- INVENTORY (25) --- Heavy Deuterium Engine Cold Fusion Reactor Reinforced Fission Core Light Treads Light Treads Armored Wheel Experimental Heat Sink High-capacity Matter Pod (38) Experimental Core Analyzer Improved Armor Integrity Analyzer Advanced Weapon Cycler Advanced Transmission Jammer Medium Armor Plating Advanced Component Analysis Suite System Purifier Autogun Autogun Minigun Minigun Minigun 8R-AWN's Boregun 8R-AWN's Boregun Remote Datajack Plasma Cutter Makeshift Hammer Peak State ------------ > --- POWER ------------ Cooled Ion Engine > --- PROPULSION ------- Armored Wheel Armored Wheel > --- UTILITY ---------- Huge Storage Unit Salvage Targeting Computer > --- WEAPON ----------- Improved Assault Rifle Minigun 8R-AWN's Boregun Makeshift Axe > --- INVENTORY -------- Cold Fusion Reactor Reinforced Fission Core Light Treads Light Treads Light Treads Experimental Heat Sink Large Matter Pod High-capacity Matter Pod Gravity Neutralizer Experimental Core Analyzer Advanced Weapon Cycler Medium Armor Plating Advanced Component Analysis Suite System Purifier Autogun Autogun Improved Assault Rifle Improved Assault Rifle Improved Assault Rifle Improved Assault Rifle Minigun Minigun Minigun 8R-AWN's Boregun [Rating: 40] Favorites ----------- Power Reinforced Ion Engine Engine Reinforced Ion Engine Propulsion Light Treads Treads Light Treads Leg Aluminum Leg Wheel Armored Wheel Utility Huge Storage Unit Device Heat Sink Storage Huge Storage Unit Processor Salvage Targeting Computer Protection Medium Armor Plating Weapon Improved Assault Rifle Energy Gun EM Shotgun Energy Cannon Beam Cannon Ballistic Gun Improved Assault Rifle Special Weapon Remote Datajack Impact Weapon Makeshift Hammer Slashing Weapon Makeshift Axe Build | -11 -10 -10 -9 -9 -9 -8 ------- Run | Yrd Mat Min Mat Min Exi Min Slots Evolved 2 | . . . 2 . . . Power . | . . . . . . . Propulsion . | . . . . . . . Utility . | . . . . . . . Weapon 2 | . . . 2 . . . Parts Attached 75 | 7 18 7 27 1 15 . Power 6 | 1 1 . 3 . 1 . Engine 6 | 1 1 . 3 . 1 . Core . | . . . . . . . Reactor . | . . . . . . . Propulsion 20 | 2 1 4 10 . 3 . Treads 17 | 2 . 4 10 . 1 . Leg 1 | . 1 . . . . . Wheel 2 | . . . . . 2 . Hover . | . . . . . . . Flight . | . . . . . . . Utility 19 | 2 4 2 8 1 2 . Device 6 | 1 2 2 1 . . . Storage 5 | 1 2 . 2 . . . Processor 1 | . . . . . 1 . Hackware . | . . . . . . . Protection 7 | . . . 5 1 1 . Artifact . | . . . . . . . Weapon 30 | 2 12 1 6 . 9 . Energy Gun 4 | 1 3 . . . . . Energy Cannon 1 | . 1 . . . . . Ballistic Gun 22 | 1 8 1 6 . 6 . Ballistic Cannon . | . . . . . . . Launcher . | . . . . . . . Special Weapon 1 | . . . . . 1 . Impact Weapon 1 | . . . . . 1 . Slashing Weapon 1 | . . . . . 1 . Piercing Weapon . | . . . . . . . Special Melee Weapon . | . . . . . . . Unidentified Prototypes 3 | . . 1 2 . . . Corrupted Parts 4 | . . 4 . . . . System Corruption 10 | . . 10 . . . . Parts Lost 9 | . 1 2 . . 6 . Power 2 | . 1 . . . 1 . Propulsion 3 | . . 2 . . 1 . Utility 1 | . . . . . 1 . Weapon 3 | . . . . . 3 . Highest Loss Streak 6 | . 1 1 . . 6 . To Critical Strikes 4 | . . . . . 4 . Average Backups 21 | 6 15 19 24 25 21 25 Power 1 | 1 . 1 1 1 1 3 Propulsion 5 | 3 5 5 6 6 4 3 Utility 4 | . 2 2 6 5 4 9 Weapon 9 | . 6 8 8 11 10 8 Tool/Special . | . . . . . . . Unused Backups 61 | 2 7 3 18 2 10 19 Power 11 | 1 . . 4 . 3 3 Propulsion 9 | 1 4 . 1 . 2 1 Utility 21 | . 1 2 5 1 4 8 Weapon 17 | . 2 1 8 . . 6 Tool/Special 3 | . . . . 1 1 1 Average Slot Usage (%) 89 | . 99 99 99 100 72 100 Engine 11 | . 13 14 11 11 11 11 Treads 21 | . 26 27 22 22 18 22 Wheel 1 | . . . . . 3 . Device 3 | . 14 14 1 . . . Storage 11 | . 14 14 11 11 11 11 Processor 1 | . . . . . 2 . Protection 6 | . . . 9 11 8 10 Energy Gun 5 | . 21 25 . . . . Ballistic Gun 23 | . 4 1 43 44 13 44 Peak Build Rating 40 | 7 12 19 25 25 40 39 Average Rating 19 | 6 9 12 22 25 20 33 On Entrance 16 | . 7 12 13 25 25 33 Naked Turns . | . . . . . . . Heaviest Build 109 | 11 52 65 109 109 109 107 Greatest Support 40 | 40 40 40 40 40 40 40 Greatest Overweight (x) 9 | . 9 1 2 2 4 2 Average Overweight (x) 1 | . . 1 1 2 2 2 Largest Inventory Capacity 25 | 8 20 20 25 25 25 25 Average Capacity 22 | 7 17 20 24 25 25 25 Most Carried 25 | 8 20 20 25 25 25 25 Average Carried 21 | 6 15 19 24 24 21 25 Final Capacity 25 | 8 20 20 25 25 25 25 Final Carried 25 | 8 20 20 25 25 25 25 Class Distribution -------------------- 47% | Mutant 42% | Tank 9% | Gunner Dominant Class ---------------- Mutant | -10/Materials Mutant | -10/Mines Tank | -9/Materials Tank | -9/Mines Mutant | -9/Exiles Tank | -8/Mines Resources | -11 -10 -10 -9 -9 -9 -8 ----------- Run | Yrd Mat Min Mat Min Exi Min Matter Collected 4288 | 306 461 450 1439 134 1443 55 Remotely 179 | 179 . . . . . . Salvage Created 4564 | 235 824 233 2353 179 685 55 Parts 311 | 22 44 14 137 13 79 2 Haulers Intercepted 8 | . 2 . 6 . . . Recyclers Shooed 5 | . 4 . . . . 1 Parts Field Recycled . | . . . . . . . Retrieved Matter . | . . . . . . . Parts Self-Destructed . | . . . . . . . Prevented . | . . . . . . . Kills | -11 -10 -10 -9 -9 -9 -8 ------- Run | Yrd Mat Min Mat Min Exi Min Combat Hostiles Destroyed 72 | . 13 5 42 4 7 1 Guns 68 | . 11 5 40 4 7 1 AOE 3 | . 1 . 2 . . . Classes Destroyed 17 | 2 6 1 4 . 3 1 Worker 2 | . 1 . 1 . . . Builder 2 | . 2 . . . . . Tunneler 9 | 8 . . . 1 . . Hauler 8 | . 2 . 6 . . . Recycler 7 | 1 2 . 4 . . . Operator 1 | . . . 1 . . . Turret 1 | . . . . . 1 . Watcher 8 | . 3 . 5 . . . Swarmer 15 | . 3 1 11 . . . Grunt 30 | . 10 2 16 2 . . Brawler 4 | . . . 3 1 . . Duelist 3 | . . . 2 1 . . Protector 2 | . . . 2 . . . Sentry 10 | . . 2 8 . . . Hunter 1 | . . . . . . 1 Zionite 8 | . . . . . 8 . Assembled 6 | . . . . . 6 . Best Kill Streak 6 | 2 3 2 6 2 6 1 Combat Bots Only 6 | . 3 2 6 2 6 1 Max Kills in Single Turn 2 | 1 2 2 2 1 2 1 Gunslinging 1 | . . 1 1 . 1 . Exploded 1 | . 1 . 1 . . . Melee . | . . . . . . . Uniques/NPCs Destroyed 4 | . . . . . 4 . 8R-AWN (-9/Exiles) EX-DEC (-9/Exiles) EX-HEX (-9/Exiles) EX-BIN (-9/Exiles) Combat | -11 -10 -10 -9 -9 -9 -8 -------- Run | Yrd Mat Min Mat Min Exi Min Hostile Shots Fired 374 | . 68 27 113 5 76 85 Missed 99 | . 23 7 31 1 18 19 Hits 275 | . 45 20 82 4 58 66 Melee 9 | . . . 4 . 5 . Projectile 266 | . 45 20 78 4 53 66 Critical Strikes 31 | . 1 2 2 . 26 . Part Disruptions 5 | . . . . . 1 4 Damage Taken 3305 | . 460 272 1118 63 1074 318 Core 492 | . 49 42 175 10 174 42 Absorbed by Shields 45 | . . . 45 . . . Core Remaining (%) 81 | 100 . 63 . . . . Volleys Fired 355 | 36 65 13 84 7 144 6 Largest 4 | 2 2 2 4 4 4 4 Hottest 94 | 60 90 90 92 92 94 92 Shots Fired 834 | 71 128 27 336 29 222 21 Gun 818 | 71 120 27 336 29 214 21 Cannon 8 | . 8 . . . . . Launcher . | . . . . . . . Special 8 | . . . . . 8 . Kinetic 685 | 36 48 1 336 29 214 21 Thermal 87 | 35 52 . . . . . Explosive . | . . . . . . . Electromagnetic 54 | . 28 26 . . . . Robot Hit Streak 30 | 6 11 5 13 9 30 9 Robot Miss Streak 7 | 7 4 4 6 2 7 3 Penetration Max 1 | . . . . . 1 . Secondary Targets 22 | . 1 1 14 1 5 . Max Gunslinging Chain 2 | . 1 1 1 1 2 . Shots Hit Robots 535 | 40 90 21 201 19 150 14 Core Hits 207 | 16 40 13 87 6 42 3 Critical Kills 5 | . . . . . 4 1 Critical Parts Destroyed 8 | . . . 1 . 7 . Critical Strikes 14 | . . . 1 . 12 1 Destroy 14 | . . . 1 . 12 1 Melee Attacks 6 | . . . . . 6 . Impact 6 | . . . . . 6 . Slashing . | . . . . . . . Piercing . | . . . . . . . Sneak Attacks . | . . . . . . . Combat Hostiles . | . . . . . . . Follow-up Attacks . | . . . . . . . Damage Inflicted 8224 | 375 1193 263 3461 310 2451 171 Guns 7050 | 375 971 262 3094 299 1888 161 Cannons 89 | . 89 . . . . . Explosions 384 | . 85 . 299 . . . Melee 563 | . . . . . 563 . Ramming 138 | . 48 1 68 11 . 10 Kinetic 5901 | 182 277 . 3094 299 1888 161 Thermal 928 | 193 537 . 198 . . . Explosive 101 | . . . 101 . . . Electromagnetic 593 | . 331 262 . . . . Impact 563 | . . . . . 563 . Slashing . | . . . . . . . Piercing . | . . . . . . . Highest Corruption 10 | . . 10 1 1 1 7 Average Corruption 1 | . . 8 1 1 1 1 Corruption Purged . | . . . . . . . Corruption Blocked . | . . . . . . . Effects 57 | . . 3 4 13 36 1 Message Errors 9 | . . . 1 2 6 . Matter Fused 17 | . . 1 1 5 10 . Heat Flow Errors 6 | . . . . 2 4 . Energy Discharges 7 | . . 1 . . 5 1 Data Loss (minor) 7 | . . . 1 2 4 . Data Loss (major) 8 | . . 1 . 1 6 . Misfires 1 | . . . . 1 . . Alerts 2 | . . . 1 . 1 . Overload Shots . | . . . . . . . Overflow Damage 150 | . . . 25 . 125 . Projectiles . | . . . . . . . Explosions 25 | . . . 25 . . . Melee 125 | . . . . . 125 . Knockbacks . | . . . . . . . Impact . | . . . . . . . Kinetic . | . . . . . . . Secondary . | . . . . . . . Self-Inflicted Damage 140 | . 15 . 125 . . . Shots 3 | . 1 . 2 . . . Rammed 26 | . 13 1 9 2 . 1 Targets Rammed 27 | . 13 1 9 3 . 1 Kicked . | . . . . . . . Crushed 1 | . . . . 1 . . Highest Temperature 268 | 40 123 72 186 255 268 29 Average Temperature 57 | 16 31 42 52 100 101 11 Received Heat Transfer 669 | . 168 123 294 24 60 . Siege Activations . | . . . . . . . Martial Activations . | . . . . . . . Shielding Activations . | . . . . . . . Robots Disrupted . | . . . . . . . Combat Hostiles . | . . . . . . . Robots Corrupted 3 | . 1 . . . 2 . Combat Hostiles 1 | . 1 . . . . . Parts Fried 4 | . 1 2 . . 1 . Impact Corruptions 3 | . . . . . 3 . Robots Melted . | . . . . . . . Combat Hostiles . | . . . . . . . Parts Melted 2 | . 1 1 . . . . Heat Transferred 1660 | 450 1060 . 150 . . . Parts Sabotaged . | . . . . . . . Parts Stolen . | . . . . . . . Parts Stripped . | . . . . . . . Power Chain Reactions 2 | . 2 . . . . . Alert | -11 -10 -10 -9 -9 -9 -8 ------- Run | Yrd Mat Min Mat Min Exi Min Maximum Alert Level 2 | . . . 2 1 . . Low Security (%) 66 | 100 100 100 26 92 . 100 Level 1 17 | . . . 36 7 . . Level 2 16 | . . . 36 . . . Level 3 . | . . . . . . . Level 4 . | . . . . . . . Level 5 . | . . . . . . . High Security . | . . . . . . . Max Security . | . . . . . . . Peak Influence 652 | 5 146 52 652 250 . 30 Initial 250 | . . 52 1 250 . . Average 160 | . 38 8 320 47 . 9 Influence Increases 2122 | 45 469 168 1285 125 . 30 Destroy 0b10 Robot/C 1300 | . 260 140 800 80 . 20 Destroy 0b10 Robot/NC 195 | 45 50 . 95 5 . . Destroy Leader 302 | . 70 20 182 20 . 10 Allied During Kill 18 | . . 8 10 . . . Successful Hack 53 | . 5 . 43 5 . . Select Force Hacks 30 | . 30 . . . . . Disable Machine 105 | . 15 . 75 15 . . Destroy Structure 74 | . 9 . 65 . . . Partial Spotted 15 | . 15 . . . . . Lose Combat Pursuer 30 | . 15 . 15 . . . Influence Decreases 2122 | 45 333 298 647 732 37 30 Entered New Map 520 | . . 84 5 394 37 . Time Decay 1542 | 45 333 174 622 338 . 30 Lost Part 20 | . . 20 . . . . Lost Ally 40 | . . 20 20 . . . Squads Dispatched 9 | . 4 1 4 . . . Investigation 4 | . 3 1 . . . . Extermination . | . . . . . . . Reinforcement 3 | . 1 . 2 . . . Assault 2 | . . . 2 . . . Garrison . | . . . . . . . Intercept . | . . . . . . . Searches Triggered . | . . . . . . . Construction Impeded 1 | . . . 1 . . . Haulers Reinforced . | . . . . . . . Active Scanning Responses . | . . . . . . . Cargo Convoy Interrupts . | . . . . . . . Stealth | -11 -10 -10 -9 -9 -9 -8 --------- Run | Yrd Mat Min Mat Min Exi Min Distress Signals 3 | . 1 . 2 . . . Communications Jammed . | . . . . . . . Distress Signals . | . . . . . . . Times Spotted 107 | . 19 7 61 4 15 1 Peak Tracking Total 10 | . 3 3 6 2 10 1 Tactical Retreats 7 | . 1 . 1 . 5 . Traps | -11 -10 -10 -9 -9 -9 -8 ------- Run | Yrd Mat Min Mat Min Exi Min Traps Triggered 7 | . 4 . 2 1 . . Indirectly . | . . . . . . . Trap Hack Attempts . | . . . . . . . Triggered . | . . . . . . . Disarmed . | . . . . . . . Reprogrammed . | . . . . . . . Reused . | . . . . . . . Traps Extracted . | . . . . . . . Installed . | . . . . . . . Triggered . | . . . . . . . Machines | -11 -10 -10 -9 -9 -9 -8 ---------- Run | Yrd Mat Min Mat Min Exi Min Machines Disabled 20 | . 1 1 6 1 11 . Max in Single Turn 1 | . 1 1 1 1 1 . Machines Repaired . | . . . . . . . Machines Dismantled . | . . . . . . . Machines Sabotaged . | . . . . . . . Overloaded Fab Kills . | . . . . . . . Hacking | -11 -10 -10 -9 -9 -9 -8 --------- Run | Yrd Mat Min Mat Min Exi Min Machines Accessed 25 | . 10 2 9 2 2 . Terminals 17 | . 8 . 8 1 . . Fabricators . | . . . . . . . Repair Stations . | . . . . . . . Recycling Units 2 | . 2 . . . . . Scanalyzers 1 | . . . 1 . . . Garrison Access . | . . . . . . . Total Hacks 55 | . 21 2 23 5 4 . Successful 26 | . 5 2 12 3 4 . Failed 29 | . 16 . 11 2 . . Catastrophic 4 | . 2 . 2 . . . Database Lockouts . | . . . . . . . Manual 18 | . 6 . 8 3 1 . Terminals 41 | . 19 . 18 4 . . Fabricators . | . . . . . . . Repair Stations . | . . . . . . . Recycling Units 2 | . 2 . . . . . Scanalyzers 5 | . . . 5 . . . Garrison Access . | . . . . . . . Terminal Hacks 21 | . 3 2 9 3 4 . Record 3 | . . . . . 3 . Robot Schematic 2 | . . . 1 1 . . Robot Analysis 1 | . . . 1 . . . Prototype ID Bank 5 | . 2 . 3 . . . Open Door 3 | . . 2 . 1 . . Branch Access Points 1 | . . . 1 . . . Scanalyzer Index 1 | . . . 1 . . . Alert Level 1 | . . . 1 . . . Recall Reinforcements 1 | . 1 . . . . . Hauler Manifests 1 | . . . 1 . . . Zone Layout 1 | . . . . 1 . . Proto ID Catalog 1 | . . . . . 1 . Fabricator Hacks . | . . . . . . . Repair Station Hacks . | . . . . . . . Recycling Unit Hacks 1 | . 1 . . . . . Retrieve Components 1 | . 1 . . . . . Scanalyzer 3 | . . . 3 . . . Insert Component 2 | . . . 2 . . . Analyze 1 | . . . 1 . . . Garrison Access Hacks . | . . . . . . . Unauthorized Hacks 1 | . 1 . . . . . Terminals . | . . . . . . . Fabricators . | . . . . . . . Repair Stations . | . . . . . . . Recycling Units 1 | . 1 . . . . . Tunnel 1 | . 1 . . . . . Scanalyzers . | . . . . . . . Garrison Access . | . . . . . . . Data Cores Recovered 1 | . . . 1 . . . Used . | . . . . . . . Hacking Detections 18 | . 8 . 9 1 . . Full Trace Events . | . . . . . . . Feedback Events . | . . . . . . . Feedback Blocked . | . . . . . . . Robot Schematics Acquired 1 | . . . 1 . . . Robots Built . | . . . . . . . Authchips . | . . . . . . . Time . | . . . . . . . Total Robot Build Rating . | . . . . . . . Part Schematics Acquired 1 | . . . 1 . . . Parts Built . | . . . . . . . Authchips . | . . . . . . . Time . | . . . . . . . Total Part Build Rating . | . . . . . . . Parts Repaired . | . . . . . . . Time . | . . . . . . . Parts Recycled . | . . . . . . . Recycled Matter . | . . . . . . . Retrieved Matter . | . . . . . . . Retrieved Components 8 | . 8 . . . . . Parts Scanalyzed 1 | . . . 1 . . . Part Schematics Acquired 1 | . . . 1 . . . Parts Damaged . | . . . . . . . Bothacking | -11 -10 -10 -9 -9 -9 -8 ------------ Run | Yrd Mat Min Mat Min Exi Min Used RIF Installer . | . . . . . . . Robots Hacked 4 | . . . . . 4 . Non-combat 3 | . . . . . 3 . Combat 1 | . . . . . 1 . Robot Hacks Applied 4 | . . . . . 4 . parse_system 4 | . . . . . 4 . Relay Couplers Released . | . . . . . . . Fabnet Peak Effective % . | . . . . . . . Robots Rewired . | . . . . . . . Allies Hacked . | . . . . . . . Hacks Repelled . | . . . . . . . Allies | -11 -10 -10 -9 -9 -9 -8 -------- Run | Yrd Mat Min Mat Min Exi Min Total Allies 2 | . . 2 . . . . Largest Group 2 | . . 2 1 . . . Highest-Rated Group 46 | . . 46 15 . . . Highest-Rated Ally 31 | . . 31 15 . . . Total Orders . | . . . . . . . Ally Attacks 6 | . . 6 . . . . Total Damage 86 | . . 86 . . . . Kills 2 | . . 2 . . . . Allies Corrupted . | . . . . . . . Allies Melted . | . . . . . . . Intel | -11 -10 -10 -9 -9 -9 -8 ------- Run | Yrd Mat Min Mat Min Exi Min Active Infowar (turns) 538 | . 538 . . . . . Seismic 538 | . 538 . . . . . Robot Analysis Total 1 | . . . 1 . . . Derelict Logs Recovered 3 | . . 1 . 2 . . Drone Launches 10 | . . . . . . 10 Drone Recoveries . | . . . . . . . Exploration | -11 -10 -10 -9 -9 -9 -8 ------------- Run | Yrd Mat Min Mat Min Exi Min Turns Passed 15085 | 435 2108 1233 4417 1570 5204 118 Spaces Moved 5060 | 200 864 483 1293 452 1741 27 Core 7 | 6 1 . . . . . Treads 4589 | 194 863 483 1293 452 1277 27 Legs . | . . . . . . . Wheels 464 | . . . . . 464 . Hover . | . . . . . . . Flight . | . . . . . . . Fastest Speed 50 | 50 160 240 240 320 150 320 Average Speed 268 | 156 209 240 308 320 274 320 Slowest Speed 500 | 160 500 240 320 320 320 320 Overloaded Moves . | . . . . . . . Propulsion Burnouts . | . . . . . . . Robots Hopped . | . . . . . . . Potential Cave-ins . | . . . . . . . Cave-ins Triggered . | . . . . . . . Exploration Rate (%) 70 | 13 97 96 96 95 90 6 Regions Visited 6 Branch Regions 4 Pre-discovered Areas 3 | . 1 1 . . 1 . Known Exits Taken 1 | . . . 1 . . . Unknown Exits Taken 5 | 1 1 1 . 1 1 . Scrap Searched 5 | . . 2 . 3 . . Spaces Dug . | . . . . . . . Terrain Destroyed 112 | . 8 . 65 . 39 . Melee . | . . . . . . . Projectile 32 | . . . . . 32 . AOE 73 | . 8 . 65 . . . Terrain Rammed . | . . . . . . . Walls Destroyed . | . . . . . . . Machines Disabled . | . . . . . . . Actions | -11 -10 -10 -9 -9 -9 -8 --------- Run | Yrd Mat Min Mat Min Exi Min Total 5968 | 256 1039 533 1558 554 1989 39 Wait 174 | . 18 12 52 86 3 3 Move 5054 | 199 863 482 1292 451 1740 27 Hop . | . . . . . . . Pick Up 127 | 11 32 7 38 3 36 . Fast Attach 18 | 7 4 2 3 . 2 . Attach 23 | . 6 3 4 . 10 . Detach 4 | . 3 . 1 . . . Swap 64 | . 15 4 25 1 17 2 Drop 116 | 3 20 9 50 3 31 . Fire 355 | 36 65 13 84 7 144 6 Melee 6 | . . . . . 6 . Ram . | . . . . . . . Kick . | . . . . . . . Crush 27 | . 13 1 9 3 . 1 Escape Stasis . | . . . . . . . Rewire . | . . . . . . . Trap . | . . . . . . . Miscellaneous . | . . . . . . . Route ------- -11/Scrapyard -10/Materials (discovered 4 exits: *Mat x3 / *Min) -10/Mines (discovered 3 exits: *Mat x2 / [*Sub]) -9/Materials (discovered 4 exits: [*Mat x3] / *Min) -9/Mines (discovered 3 exits: [*Mat x2] / *Exi) -9/Exiles (discovered 2 exits: [*Min x2]) -8/Mines (discovered 1 exit: [*Mat]) History --------- Turn | Location | Event 8 | -11/Scrapyard | Discovered new exit (range 15) 436 | -11/Scrapyard | Entered Materials 437 | -10/Materials | Build established: Mutant 773 | -10/Materials | Discovered new exit (range 8) 974 | -10/Materials | Discovered new exit (range 11) 1217 | -10/Materials | Discovered new exit (range 16) 1681 | -10/Materials | Discovered new exit (range 16) 2544 | -10/Materials | Entered Mines 2578 | -10/Mines | Discovered new exit (range 16) 2691 | -10/Mines | Discovered new exit (range 9) 2696 | -10/Mines | A weapon hastily lodged in a ceiling crevice suddenly fell to the ground 2812 | -10/Mines | Learned location of Mines (-9) 2905 | -10/Mines | Found the Drone Emporium 2914 | -10/Mines | Found Prototype Device 2914 | -10/Mines | Identified Sensor Drone Bay 3174 | -10/Mines | Met a Derelict shopkeep closing up shop 3276 | -10/Mines | Discovered new exit (range 8) 3706 | -10/Mines | System corruption reached 10% 3777 | -10/Mines | Entered Materials 3777 | -9/Materials | Accompanied by 1 ally 3777 | -9/Materials | Evolved 2 slots: Weapon x2 4097 | -9/Materials | Build established: Tank 4596 | -9/Materials | Discovered new exit (range 3) 5043 | -9/Materials | Discovered new exit (range 9) 5619 | -9/Materials | Discovered new exit (range 9) 5680 | -9/Materials | Identified exit to Mines 6723 | -9/Materials | Discovered new exit (range 14) 7377 | -9/Materials | First assault squad dispatched 8194 | -9/Materials | Entered Mines 8222 | -9/Mines | Met a Derelict bent on vengeance 8281 | -9/Mines | Learned location of 1 exit from Materials 8288 | -9/Mines | Met a Derelict who couldn't figure out how to use a Trap Extractor 8977 | -9/Mines | Discovered new exit (range 8) 9015 | -9/Mines | Discovered new exit (range 9) 9476 | -9/Mines | Deemed a non-threat by the Exiles lab entrance 9751 | -9/Mines | Discovered new exit (range 5) 9764 | -9/Mines | Entered Exiles 9846 | -9/Exiles | Met 8R-AWN 9898 | -9/Exiles | Met EX-HEX 10016 | -9/Exiles | Met EX-DEC 10077 | -9/Exiles | Learned location of Zion (-6) 10094 | -9/Exiles | Build established: Mutant 10369 | -9/Exiles | Discovered new exit (range 10) 10711 | -9/Exiles | Met EX-BIN 10769 | -9/Exiles | Aligned with FarCom system 10772 | -9/Exiles | Given EX-Vault access code 10849 | -9/Exiles | Opened EX-Vault 10881 | -9/Exiles | Found Modified TNC 10885 | -9/Exiles | Found Deploy-a-Sentry 10889 | -9/Exiles | Found Deploy-a-Sentry 10893 | -9/Exiles | Found Deploy-a-Sentry 10898 | -9/Exiles | Found Chronowheel 10956 | -9/Exiles | Warned to stay clear of 0b10 Research branches 11547 | -9/Exiles | Visited The Gauntlet 13133 | -9/Exiles | Discovered new exit (range 15) 13282 | -9/Exiles | Attacked by the Exiles 13379 | -9/Exiles | Core integrity fell below 50% 13426 | -9/Exiles | Core integrity fell below 20% 13442 | -9/Exiles | Destroyed 8R-AWN 13449 | -9/Exiles | Found 8R-AWN's Boregun 13452 | -9/Exiles | Lost 6 parts (1p1n1u3w) 13458 | -9/Exiles | Found 8R-AWN's Boregun 13721 | -9/Exiles | Build established: Gunner 14416 | -9/Exiles | Destroyed EX-DEC 14448 | -9/Exiles | Destroyed EX-HEX 14482 | -9/Exiles | Destroyed EX-BIN 14543 | -9/Exiles | Found System Purifier 14569 | -9/Exiles | Found Exp. Core Analyzer 14968 | -9/Exiles | Entered Mines 15059 | -8/Mines | ME-RLN came to Exiles' defense 15078 | -8/Mines | Discovered new exit (range 11) 15086 | -8/Mines | Destroyed by ME-RLN with Improved Arc Thrower Last Messages --------------- 14791_ System corrupted: Component data lost. 14948_ Dropped Gravity Neutralizer. 14948_ Acquired Plasma Cutter. 14954_ Dropped Imp. Assault Rifle. 14954_ Acquired Sensor Drone Bay. 14962_ Dropped Minigun. 14962_ Acquired Remote Datajack. A strange signal echoes through the mines. LOCATION=UNKNOWN GOAL=ESCAPE 14968_ H-55 Commando suffers critical hit (Destroy). 14968_ H-55 Commando destroyed. 14975_ Acquired 55 matter. 15059_ ME-RLN: "I came as fast as I could... Wait, it was you!" 15060_ System corrupted: Energy discharge (-61). 15077_ Sensor Drone released from Sensor Drone Bay. 15078_ EXIT=FOUND 15078_ Sensor Drone released from Sensor Drone Bay. 15080_ Slammed into R-06 Scavenger. 15081_ Sensor Drone released from Sensor Drone Bay. Map ----- +----------------------------------------------------+ | ?????????????????????????????????????????????????? | | ?????????????????????????????????????????????????? | | ?????????????????????????????????????????????????? | | ?????????????????????????????????????????????????? | | ?????????????????????????????????????????????????? | | ?????????????????????????????????????????????????? | | ?????????????????????????????????????????????????? | | ?????????????????????????????????????????????????? | | ?????????????????????????????????????????????????? | | ?????????????????????????????????????????????????? | | ?????????????????????????????????????????????????? | | ??????????????????????u??????????????????????????? | | ??????????????????????u??????????????????????????? | | ?????????????????????????????????????????????????? | | ?????????????????????????????????????????????????? | | ?????????????????????????????????????????????????? | | ?????????????????????????????????????????????????? | | ????????k????????????????????????????????????????? | | ???????????????????###???????????????????????????? | | ???????k???????????# ???????????????????????????? | | ???????????????????# #???????????????????????????? | | ???????????????????# #???????????????????????????? | | ???????????????????# #???????????????????????????? | | ???????????????????#n######??????????????????????? | | ???????????????????#nnnnpn#??????????????????????? | | ???????????????????#n####@#??????????????????????? | | ???????????????????# #??#n#??????????????????????? | | ???????????????????# #??#n#??????????????????????? | | ???????????????????# #??#n#??????????????????????? | | ?????????########### #??# r?????????????tt?????? | | ?????????# t #??# ###????????????????????? | | ?????????# ###########??# #??????????????????????? | | ????????## ###??????????# #??????????????????????? | | ???????## ##?????????# #??????????????????????? | | ???????# #????????? ??????????????????????? | | ???????# #?????????< ??????????????????????? | | ???????# #????????? ??????????????????????? | | ???????# = #????????? ??????????????????????? | | ???????##! ##?????????###??????????????????????? | | ????????######???????????????????????????????????? | | ?????????????????????????????????????????????????? | | ?????????????????????????????????????????????????? | | | | | | | | | | | | | | | | | +----------------------------------------------------+ Best States ------------- Heat Dissipation 38 Energy Generation 14 Energy Capacity 280 Matter Stores 300 Matter Capacity 300 Sight Range 16 Terrain Scan Density 10 Armor Coverage 225 Evasion (%) 40 Recoil Reduction 2 Salvage Targeting 1 Item Schematics ----------------- Arm. Wheel | -9/Materials | Scanalyzed Robot Schematics ------------------ M-13 Machinist | -9/Materials | Hacked Fabricated ------------ Nothing Repaired ---------- Nothing Alien Tech Used ----------------- None Achievements -------------- None Challenges ------------ None Game ------ Seed MyomerConstructCloak Manual? 0 Play Time 00:58:08 Cumulative 861.6 hours Start 2025.06.05 @ 00:38:03 End 2025.06.05 @ 01:36:49 Sessions 1 Manual Loads 0 Difficulty Rogue Special Mode None Game No. 472 Rogue 472 Adventurer 0 Explorer 0 Win Type - Total 22 Types 10/3/3/0/1/1/2/2/0/0 Lore% 80 Gallery% 85 Achievement% 83 Wizard Run 0 Options --------- Layout 0 ASCII 0 Keyboard 0 Movement Numpad Keybinds 0 Fullscreen 2 Font 24/Smallcaps Map View 76x50 Zoom Use 0% Tactical HUD 1 Map Filters NONE Filters NONE Steam 1 RUN: 20cdd0c5-3d6c-420f-a6b3-a5fe5b6cd9f5